fUSD/lending_fUSD_20241223
["ID","MTS","AMOUNT","RATE_DAILY","PERIOD"]
[346468877,1734985916536,-500.0,0.00015616,2]
[346468878,1734985916545,-825.1,0.00015616,2]
[346468879,1734985916555,-2489.45,0.00015616,2]
[346468880,1734985916565,-1441.48,0.00015616,2]
[346468881,1734985916575,-711.38,0.00015616,2]
[346468882,1734985916585,-1072.76,0.00015616,2]
[346468883,1734985916594,-1067.18,0.00015616,2]
[346468884,1734985916604,-1330.49,0.00015616,2]
[346468885,1734985916614,-500.0,0.00015616,2]
[346468886,1734985916623,-1330.05,0.00015616,2]
[346468887,1734985916632,-2293.86,0.00015616,2]
[346468888,1734985916641,-960.34,0.00015616,2]
[346468889,1734985916651,-726.06,0.00015616,2]
[346468890,1734985916660,-1198.05,0.00015616,2]
[346468891,1734985916669,-676.2,0.00015616,2]
[346468892,1734985916679,-976.17,0.00015616,2]
[346468893,1734985916688,-572.9,0.00015616,2]
[346468894,1734985916697,-2358.02,0.00015616,2]
[346468895,1734985916709,-1767.73,0.00015616,2]
[346468896,1734985916719,-1610.47,0.00015616,2]
[346468897,1734985916728,-1406.6,0.00015616,2]
[346468898,1734985916737,-999.64,0.00015616,2]
[346468899,1734985916747,-1381.12,0.00015616,2]
[346468900,1734985916756,-500.0,0.00015616,2]
[346468901,1734985916765,-2739.52,0.00015616,2]
[346468902,1734985916775,-1819.83,0.00015616,2]
[346468903,1734985916783,-500.0,0.00015616,2]
[346468904,1734985916793,-670.54,0.00015616,2]
[346468905,1734985916803,-500.0,0.00015616,2]
[346468906,1734985916812,-1116.26,0.00015616,2]
[346468907,1734985916821,-500.0,0.00015616,2]
[346468908,1734985916831,-1104.4,0.00015616,2]
[346468909,1734985916840,-500.0,0.00015616,2]
[346468910,1734985916849,-1127.54,0.00015616,2]
[346468911,1734985916858,-500.0,0.00015616,2]
[346468912,1734985916868,-713.56,0.00015616,2]
[346468913,1734985916877,-718.79,0.00015616,2]
[346468914,1734985916887,-500.0,0.00015616,2]
[346468915,1734985916898,-1324.85,0.00015616,2]
[346468916,1734985916907,-500.0,0.00015616,2]
[346468917,1734985916917,-546.66,0.00015616,2]
[346468918,1734985916927,-889.67,0.00015616,2]
[346468919,1734985916940,-552.31,0.00015616,2]
[346468920,1734985916950,-1591.277946,0.00015616,2]
[346468921,1734985916962,-2585.74,0.00015616,2]
[346468922,1734985916975,-1564.45,0.00015616,2]
[346468923,1734985916985,-500.0,0.00015616,2]
[346468924,1734985916994,-1591.277946,0.00015616,2]
[346468925,1734985917005,-2132.91,0.00015616,2]
[346468926,1734985917017,-1910.4,0.00015616,2]
[346468927,1734985917027,-480.91349404,0.00015616,2]
[346468928,1734985917036,-500.0,0.00015616,2]
[346468929,1734985917046,-500.0,0.00015616,2]
[346468930,1734985917055,-500.0,0.00015616,2]
[346468931,1734985917066,-676.74,0.00015616,2]
[346468932,1734985917075,-1052.83,0.00015616,2]
[346468933,1734985917085,-1540.54,0.00015616,2]
[346468934,1734985917095,-3961.8,0.00015616,2]
[346468935,1734985917104,-906.99,0.00015616,2]
[346468936,1734985917114,-1220.26,0.00015616,2]
[346468937,1734985917123,-500.0,0.00015616,2]
[346468938,1734985917132,-757.77,0.00015616,2]
[346468939,1734985917141,-608.2,0.00015616,2]
[346468940,1734985917150,-730.93,0.00015616,2]
[346468941,1734985917159,-642.48,0.00015616,2]
[346468942,1734985917168,-1880.32,0.00015616,2]
[346468943,1734985917177,-471.96658246,0.00015616,2]
[346468944,1734985917186,-500.0,0.00015616,2]
[346468945,1734985917195,-500.0,0.00015616,2]
[346468946,1734985917205,-593.05,0.00015616,2]
[346468947,1734985917214,-1323.67,0.00015616,2]
[346468948,1734985917223,-731.37,0.00015616,2]
[346468949,1734985917232,-500.0,0.00015616,2]
[346468950,1734985917242,-1229.23,0.00015616,2]
[346468951,1734985917251,-1128.51,0.00015616,2]
[346468952,1734985917260,-500.0,0.00015616,2]
[346468953,1734985917269,-1556.25,0.00015616,2]
[346468954,1734985917279,-1821.81,0.00015616,2]
[346468955,1734985917288,-500.0,0.00015616,2]
[346468956,1734985917298,-2511.25,0.00015616,2]
[346468957,1734985917308,-500.0,0.00015616,2]
[346468958,1734985917318,-500.0,0.00015616,2]
[346468959,1734985917328,-500.0,0.00015616,2]
[346468960,1734985917337,-1286.37,0.00015616,2]
[346468961,1734985917347,-4562.33,0.00015616,2]
[346468962,1734985917357,-1062.83,0.00015616,2]
[346468963,1734985917366,-1153.14,0.00015616,2]
[346468964,1734985917375,-641.53,0.00015616,2]
[346468965,1734985917384,-500.0,0.00015616,2]
[346468966,1734985917394,-2535.38,0.00015616,2]
[346468967,1734985917403,-559.44,0.00015616,2]
[346468968,1734985917413,-2844.22,0.00015616,2]
[346468969,1734985917422,-500.0,0.00015616,2]
[346468970,1734985917432,-1175.89,0.00015616,2]
[346468971,1734985917440,-659.94,0.00015616,2]
[346468972,1734985917450,-1425.63,0.00015616,2]
[346468973,1734985917460,-3167.53,0.00015616,2]
[346468974,1734985917470,-1269.21,0.00015616,2]
[346468975,1734985917479,-500.0,0.00015616,2]
[346468976,1734985917489,-3442.76,0.00015616,2]
[346468977,1734985917499,-1385.92,0.00015616,2]
[346468978,1734985917508,-1459.47,0.00015616,2]
[346468979,1734985917519,-555.79,0.00015616,2]
[346468980,1734985917528,-533.73,0.00015616,2]
[346468981,1734985917537,-997.76,0.00015616,2]
[346468982,1734985917546,-500.0,0.00015616,2]
[346468983,1734985917555,-8524.68,0.00015616,2]
[346468984,1734985917564,-1272.23,0.00015616,2]
[346468985,1734985917573,-2285.32,0.00015616,2]
[346468986,1734985917582,-981.91,0.00015616,2]
[346468987,1734985917591,-2978.93,0.00015616,2]
[346468988,1734985917602,-9546.61,0.00015616,2]
[346468989,1734985917611,-2228.43,0.00015616,2]
[346468990,1734985917620,-1275.35,0.00015616,2]
[346468991,1734985917630,-2084.77,0.00015616,2]
[346468992,1734985917639,-701.29,0.00015616,2]
[346468993,1734985917648,-8504.12,0.00015616,2]
[346468994,1734985917657,-2631.63,0.00015616,2]
[346468995,1734985917666,-5876.43,0.00015616,2]
[346468996,1734985917675,-500.0,0.00015616,2]
[346468997,1734985917684,-714.851638,0.00015616,2]
[346468998,1734985917694,-1269.09,0.00015616,2]
[346468999,1734985917703,-500.0,0.00015616,2]
[346469000,1734985917712,-1403.77,0.00015616,2]
[346469001,1734985917721,-6999.05,0.00015616,2]
[346469002,1734985917730,-896.477441,0.00015616,2]
[346469003,1734985917739,-567.05,0.00015616,2]
[346469004,1734985917748,-500.0,0.00015616,2]
[346469005,1734985917757,-500.0,0.00015616,2]
[346469006,1734985917766,-151.0,0.00015616,2]
[346469007,1734985917775,-978.25,0.00015616,2]
[346469008,1734985917784,-878.42,0.00015616,2]
[346469009,1734985917792,-810.98,0.00015616,2]
[346469010,1734985917802,-4971.32,0.00015616,2]
[346469011,1734985917811,-15609.61,0.00015616,2]
[346469012,1734985917819,-2082.07,0.00015616,2]
[346469013,1734985917828,-1810.82,0.00015616,2]
[346469014,1734985917837,-500.0,0.00015616,2]
[346469015,1734985917846,-500.0,0.00015616,2]
[346469016,1734985917855,-544.09,0.00015616,2]
[346469017,1734985917864,-500.0,0.00015616,2]
[346469018,1734985917873,-2194.12,0.00015616,2]
[346469019,1734985917882,-21485.8,0.00015616,2]
[346469020,1734985917891,-537.09,0.00015616,2]
[346469021,1734985917900,-1307.78,0.00015616,2]
[346469022,1734985917909,-608.254172,0.00015616,2]
[346469023,1734985917918,-648.7,0.00015616,2]
[346469024,1734985917928,-500.0,0.00015616,2]
[346469025,1734985917941,-830.494148,0.00015616,2]
[346469026,1734985917950,-500.0,0.00015616,2]
[346469027,1734985917961,-792.62,0.00015616,2]
[346469028,1734985917970,-500.0,0.00015616,2]
[346469029,1734985917981,-695.34,0.00015616,2]
[346469030,1734985917990,-2306.63,0.00015616,2]
[346469031,1734985917999,-500.0,0.00015616,2]
[346469032,1734985918009,-1338.41,0.00015616,2]
[346469033,1734985918018,-1110.41,0.00015616,2]
[346469034,1734985918027,-2259.15,0.00015616,2]
[346469035,1734985918037,-2704.02,0.00015616,2]
[346469036,1734985918046,-8082.49,0.00015616,2]
[346469037,1734985918056,-500.0,0.00015616,2]
[346469038,1734985918066,-1130.4,0.00015616,2]
[346469039,1734985918080,-4959.77,0.00015616,2]
[346469040,1734985918090,-957.86,0.00015616,2]
[346469041,1734985918100,-505.532594,0.00015616,2]
[346469042,1734985918109,-1409.87,0.00015616,2]
[346469043,1734985918118,-1185.79,0.00015616,2]
[346469044,1734985918128,-500.0,0.00015616,2]
[346469045,1734985918137,-736.657144,0.00015616,2]
[346469046,1734985918147,-909.88,0.00015616,2]
[346469047,1734985918156,-500.0,0.00015616,2]
[346469048,1734985918166,-500.0,0.00015616,2]
[346469049,1734985918175,-5418.44,0.00015616,2]
[346469050,1734985918184,-1045.5,0.00015616,2]
[346469051,1734985918194,-4556.54,0.00015616,2]
[346469052,1734985918205,-881.96,0.00015616,2]
[346469053,1734985918217,-500.0,0.00015616,2]
[346469054,1734985918226,-500.0,0.00015616,2]
[346469055,1734985918235,-151.0,0.00015616,2]
[346469056,1734985918244,-25800.67,0.00015616,2]
[346469057,1734985918254,-1968.17,0.00015616,2]
[346469058,1734985918264,-500.0,0.00015616,2]
[346469059,1734985918273,-151.0,0.00015616,2]
[346469060,1734985918283,-687.21,0.00015616,2]
[346469061,1734985918292,-500.0,0.00015616,2]
[346469062,1734985918302,-3288.38,0.00015616,2]
[346469063,1734985918312,-1811.4,0.00015616,2]
[346469064,1734985918321,-500.0,0.00015616,2]
[346469065,1734985918331,-416.862212,0.00015616,2]
[346469066,1734985918340,-500.0,0.00015616,2]
[346469067,1734985918349,-1397.62,0.00015616,2]
[346469068,1734985918359,-638.509271,0.00015616,2]
[346469069,1734985918368,-1421.74,0.00015616,2]
[346469070,1734985918378,-1226.06,0.00015616,2]
[346469071,1734985918387,-500.0,0.00015616,2]
[346469072,1734985918397,-2054.5,0.00015616,2]
[346469073,1734985918406,-500.0,0.00015616,2]
[346469074,1734985918416,-1202.02,0.00015616,2]
[346469075,1734985918425,-997.04,0.00015616,2]
[346469076,1734985918435,-857.55,0.00015616,2]
[346469077,1734985918445,-500.0,0.00015616,2]
[346469078,1734985918455,-4568.68,0.00015616,2]
[346469079,1734985918464,-6837.63,0.00015616,2]
[346469080,1734985918473,-1006.94,0.00015616,2]
[346469081,1734985918483,-500.0,0.00015616,2]
[346469082,1734985918492,-3003.94,0.00015616,2]
[346469083,1734985918502,-3832.76,0.00015616,2]
[346469084,1734985918511,-500.0,0.00015616,2]
[346469085,1734985918520,-1063.28,0.00015616,2]
[346469086,1734985918530,-500.0,0.00015616,2]
[346469087,1734985918539,-2507.56,0.00015616,2]
[346469088,1734985918549,-8648.19,0.00015616,2]
[346469089,1734985918559,-5405.85,0.00015616,2]
[346469090,1734985918568,-960.03,0.00015616,2]
[346469091,1734985918577,-1187.23,0.00015616,2]
[346469092,1734985918587,-500.0,0.00015616,2]
[346469093,1734985918597,-2940.51,0.00015616,2]
[346469094,1734985918606,-1048.41,0.00015616,2]
[346469095,1734985918616,-1068.6,0.00015616,2]
[346469096,1734985918629,-840.39,0.00015616,2]
[346469097,1734985918639,-1993.74,0.00015616,2]
[346469098,1734985918647,-3561.12,0.00015616,2]
[346469099,1734985918657,-546.61,0.00015616,2]
[346469100,1734985918667,-500.0,0.00015616,2]
[346469101,1734985918676,-3274.29,0.00015616,2]
[346469102,1734985918686,-1338.38,0.00015616,2]
[346469103,1734985918695,-783.78,0.00015616,2]
[346469104,1734985918706,-500.0,0.00015616,2]
[346469105,1734985918715,-6361.67,0.00015616,2]
[346469106,1734985918724,-2499.95,0.00015616,2]
[346469107,1734985918734,-1272.9,0.00015616,2]
[346469108,1734985918743,-584.79,0.00015616,2]
[346469109,1734985918752,-1264.02,0.00015616,2]
[346469110,1734985918918,-602.61,0.00015616,2]
[346469111,1734985918959,-2583.28,0.00015616,2]
[346469112,1734985918969,-3548.89,0.00015616,2]
[346469113,1734985918979,-20926.66,0.00015616,2]
[346469114,1734985918989,-1616.84,0.00015616,2]
[346469115,1734985918998,-5036.21,0.00015616,2]
[346469116,1734985919008,-2477.09,0.00015616,2]
[346469117,1734985919017,-151.0,0.00015616,2]
[346469118,1734985919027,-1308.35,0.00015616,2]
[346469119,1734985919035,-345.39155,0.00015616,2]
[346469120,1734985919045,-3947.04,0.00015616,2]
[346469121,1734985919054,-500.0,0.00015616,2]
[346469122,1734985919064,-500.0,0.00015616,2]
[346469123,1734985919073,-1083.41,0.00015616,2]
[346469124,1734985919082,-2255.81,0.00015616,2]
[346469125,1734985919091,-1480.03,0.00015616,2]
[346469126,1734985919101,-280.758262,0.00015616,2]
[346469127,1734985919110,-2607.12,0.00015616,2]
[346469128,1734985919119,-5040.82,0.00015616,2]
[346469129,1734985919128,-543.495431,0.00015616,2]
[346469130,1734985919138,-1247.57,0.00015616,2]
[346469131,1734985919147,-500.0,0.00015616,2]
[346469132,1734985919157,-630.85,0.00015616,2]
[346469133,1734985919167,-205.05387204,0.00015616,2]
[346469134,1734985919176,-1429.01,0.00015616,2]
[346469135,1734985919188,-2068.91,0.00015616,2]
[346469136,1734985919198,-1226.76,0.00015616,2]
[346469137,1734985919208,-2452.75,0.00015616,2]
[346469138,1734985919217,-1241.01,0.00015616,2]
[346469139,1734985919227,-506.4,0.00015616,2]
[346469140,1734985919236,-554.46,0.00015616,2]
[346469141,1734985919246,-18700.62,0.00015616,2]
[346469142,1734985919255,-501.17,0.00015616,2]
[346469143,1734985919265,-3300.69,0.00015616,2]
[346469144,1734985919274,-350.820655,0.00015616,2]
[346469145,1734985919284,-6119.76,0.00015616,2]
[346469146,1734985919294,-3913.42,0.00015616,2]
[346469147,1734985919303,-490.379018,0.00015616,2]
[346469148,1734985919312,-500.0,0.00015616,2]
[346469149,1734985919321,-1567.98,0.00015616,2]
[346469150,1734985919331,-6444.03,0.00015616,2]
[346469151,1734985919340,-1453.39,0.00015616,2]
[346469152,1734985919349,-3959.58,0.00015616,2]
[346469153,1734985919359,-1603.61,0.00015616,2]
[346469154,1734985919368,-3798.82,0.00015616,2]
[346469155,1734985919378,-1305.37,0.00015616,2]
[346469156,1734985919387,-1456.46,0.00015616,2]
[346469157,1734985919396,-649.54,0.00015616,2]
[346469158,1734985919405,-1612.82686864,0.00015616,2]
[346469159,1734985919899,-2534.22313136,0.00015616,2]
[346469160,1734985919908,-3993.59,0.00015616,2]
[346469161,1734985919919,-46.08520118,0.00015616,2]
[346469162,1734985919933,-453.91479882,0.00015616,2]
[346469163,1734985919943,-514.33,0.00015616,2]
[346469164,1734985919952,-3821.57,0.00015616,2]
[346469165,1734985919963,-1192.10832824,0.00015616,2]
[346469166,1734985919976,-649.96167176,0.00015616,2]
[346469167,1734985919985,-1272.09,0.00015616,2]
[346469168,1734985919994,-4205.8,0.00015616,2]
[346469169,1734985920009,-452.76781,0.00015616,2]
[346469170,1734985920020,-990.12,0.00015616,2]
[346469171,1734985920030,-7810.59175247,0.00015616,2]
[346469172,1734985920129,-1770.14824753,0.00015616,2]
[346469173,1734985920139,-655.81405889,0.00015616,2]
[346469174,1734985920175,-2618.01594111,0.00015616,2]
[346469175,1734985920185,-500.0,0.00015616,2]
[346469176,1734985920194,-500.0,0.00015616,2]
[346469177,1734985920205,-6970.0,0.00015616,2]
[346469178,1734985920215,-3939.69,0.00015616,2]
[346469179,1734985920224,-513.29459,0.00015616,2]
[346469180,1734985920233,-5297.22,0.00015616,2]
[346469181,1734985920243,-507.24,0.00015616,2]
[346469182,1734985920253,-2342.86,0.00015616,2]
[346469183,1734985920262,-4406.32,0.00015616,2]
[346469184,1734985920272,-880.11,0.00015616,2]
[346469185,1734985920281,-500.0,0.00015616,2]
[346469186,1734985920291,-3419.02,0.00015616,2]
[346469187,1734985920301,-500.0,0.00015616,2]
[346469188,1734985920310,-7467.93,0.00015616,2]
[346469189,1734985920320,-1563.38,0.00015616,2]
[346469190,1734985920329,-1687.17,0.00015616,2]
[346469191,1734985920339,-560.36,0.00015616,2]
[346469192,1734985920349,-3781.54,0.00015616,2]
[346469193,1734985920358,-2438.69,0.00015616,2]
[346469194,1734985920368,-3631.24,0.00015616,2]
[346469195,1734985920377,-7242.71,0.00015616,2]
[346469196,1734985920387,-1012.15,0.00015616,2]
[346469197,1734985920396,-500.0,0.00015616,2]
[346469198,1734985920407,-870.81,0.00015616,2]
[346469199,1734985920416,-1706.03,0.00015616,2]
[346469200,1734985920427,-31677.78224844,0.00015616,2]
[346469201,1734985920439,-1146.503358,0.00015616,2]
[346469202,1734985920451,-1854.0,0.00015616,2]
[346469203,1734985920528,-151.0,0.0001452,2]
[346469204,1734985920538,-1391.39439356,0.00015616,2]
[346469205,1734985920548,-589.510352,0.00015616,2]
[346469206,1734985920557,-622.00625334,0.00015616,2]
[346469207,1734985920569,-3290.47607736,0.00015616,2]
[346469208,1734985920579,-1195.00937438,0.00015616,2]
[346469209,1734985920591,-3262.08829492,0.00015616,2]
[346469210,1734985920600,-1841.67,0.00015616,2]
[346469211,1734985920610,-728.54,0.00015616,2]
[346469212,1734985920619,-1042.2,0.00015616,2]
[346469213,1734985920628,-1791.62,0.00015616,2]
[346469214,1734985920637,-7200.05,0.00015616,2]
[346469215,1734985920647,-4088.12,0.00015616,2]
[346469216,1734985920656,-599.323748,0.00015616,2]
[346469217,1734985920665,-500.0,0.00015616,2]
[346469218,1734985920675,-5502.42,0.00015616,2]
[346469219,1734985920685,-1638.56,0.00015616,2]
[346469220,1734985920694,-1655.23,0.00015616,2]
[346469221,1734985920704,-4525.56,0.00015616,2]
[346469222,1734985920716,-3696.68,0.00015616,2]
[346469223,1734985920727,-1166.09,0.00015616,2]
[346469224,1734985920739,-6365.37,0.00015616,2]
[346469225,1734985920748,-500.0,0.00015616,2]
[346469226,1734985920758,-500.0,0.00015616,2]
[346469227,1734985920768,-2529.79,0.00015616,2]
[346469228,1734985920778,-5007.05,0.00015616,2]
[346469229,1734985920787,-553.26,0.00015616,2]
[346469230,1734985920797,-4684.79,0.00015616,2]
[346469231,1734985920806,-734.61,0.00015616,2]
[346469232,1734985920815,-500.0,0.00015616,2]
[346469233,1734985920824,-694.347267,0.00015616,2]
[346469234,1734985920834,-1179.54,0.00015616,2]
[346469235,1734985920844,-4446.01,0.00015616,2]
[346469236,1734985920853,-1889.33,0.00015616,2]
[346469237,1734985920863,-705.165856,0.00015616,2]
[346469238,1734985920872,-1288.53,0.00015616,2]
[346469239,1734985920882,-500.0,0.00015616,2]
[346469240,1734985920891,-1384.490771,0.00015616,2]
[346469241,1734985920901,-1000.67,0.00015616,2]
[346469242,1734985920911,-3407.21,0.00015616,2]
[346469243,1734985920920,-2691.94,0.00015616,2]
[346469244,1734985920932,-500.0,0.00015616,2]
[346469245,1734985920941,-5775.45196808,0.00015616,2]
[346469246,1734985922043,-250.0,0.00012946,2]
[346469247,1734985922052,-230.345375,0.00013698,2]
[346469248,1734985922064,-269.654625,0.00013698,2]
[346469249,1734985922074,-500.0,0.00013972,2]
[346469250,1734985922085,-8346.35545778,0.00014146,2]
[346469251,1734985922095,-210.05,0.00014246,2]
[346469252,1734985922105,-1433.57267402,0.00014307,2]
[346469253,1734985922116,-932.82192,0.00014307,2]
[346469254,1734985922133,-675.60039227,0.00014307,2]
[346469255,1734985922144,-19752.51632944,0.00014307,2]
[346469256,1734985922153,-1727.253949,0.00014794,2]
[346469257,1734985922163,-10000.0,0.00014794,2]
[346469258,1734985922172,-151.0,0.00015068,2]
[346469259,1734985922181,-1727.253949,0.00015068,2]
[346469260,1734985922191,-221.863357,0.00015342,2]
[346469261,1734985922200,-1727.253949,0.00015342,2]
[346469262,1734985922212,-6270.90803192,0.00015616,2]
[346469263,1734985922221,-1280.13,0.00015616,2]
[346469264,1734985922231,-65.51087834,0.00015616,2]
[346469265,1734985922326,-500.0,0.00013698,2]
[346469266,1734985922336,-1268.60912166,0.00015616,2]
[346469267,1734985922346,-10250.84,0.00015616,2]
[346469268,1734985922355,-1478.9,0.00015616,2]
[346469269,1734985922364,-984.15087834,0.00015616,2]
[346469270,1734985922376,-1380.64479506,0.00015616,2]
[346469271,1734985922391,-412.35385417,0.00015616,2]
[346469272,1734985923144,-350.12013744,0.00013695,2]
[346469273,1734985923153,-80.82747952,0.00013695,2]
[346469274,1734985923165,-419.17252048,0.00013695,2]
[346469275,1734985923175,-171.52046452,0.00013695,2]
[346469276,1734985923185,-283.10027114,0.00013695,2]
[346469277,1734985923195,-332.50103573,0.00013695,2]
[346469278,1734985923204,-500.0,0.00013695,2]
[346469279,1734985923215,-250.50106963,0.00013695,2]
[346469280,1734985923227,-249.49893037,0.00013695,2]
[346469281,1734985923236,-370.39390683,0.00013695,2]
[346469282,1734985923245,-500.0,0.00013698,2]
[346469283,1734985923254,-510.28,0.00013698,2]
[346469284,1734985923263,-500.0,0.00013698,2]
[346469285,1734985923272,-49.98291779,0.00013698,2]
[346469286,1734985923284,-450.01708221,0.00013698,2]
[346469287,1734985923295,-500.0,0.00013972,2]
[346469288,1734985923304,-1256.88280795,0.0001442,2]
[346469289,1734985923316,-1966.01695053,0.0001442,2]
[346469290,1734985923379,-304.8,0.0001442,2]
[346469291,1734985923391,-676.0,0.0001442,2]
[346469292,1734985923403,-1202.460015,0.0001442,2]
[346469293,1734985923453,-500.0,0.00014246,2]
[346469294,1734985923463,-217.82650127,0.0001442,2]
[346469295,1734985923475,-43170.22657832,0.0001442,2]
[346469296,1734985923485,-4932.76386577,0.00015068,2]
[346469297,1734985923498,-5067.23613423,0.00015068,2]
[346469298,1734985923508,-10000.0,0.00015342,2]
[346469299,1734985923518,-11013.75616842,0.00015616,2]
[346469300,1734985923537,-11778.19430401,0.00015616,2]
[346469301,1734985923547,-1384.490771,0.00015616,2]
[346469302,1734985923557,-3957.97,0.00015616,2]
[346469303,1734985923567,-500.0,0.00015616,2]
[346469304,1734985923577,-657.62,0.00015616,2]
[346469305,1734985923587,-586.91,0.00015616,2]
[346469306,1734985923597,-3696.53,0.00015616,2]
[346469307,1734985923607,-1054.89,0.00015616,2]
[346469308,1734985923617,-638.65,0.00015616,2]
[346469309,1734985923628,-1067.03,0.00015616,2]
[346469310,1734985923637,-500.0,0.00015616,2]
[346469311,1734985923646,-937.27,0.00015616,2]
[346469312,1734985923656,-670.92,0.00015616,2]
[346469313,1734985923665,-3107.9,0.00015616,2]
[346469314,1734985923675,-10252.03865568,0.00015616,2]
[346469315,1734985923687,-77.10134432,0.00015616,2]
[346469316,1734985923697,-642.93,0.00015616,2]
[346469317,1734985923707,-500.0,0.00015616,2]
[346469318,1734985923718,-1866.48,0.00015616,2]
[346469319,1734985923728,-1416.27,0.00015616,2]
[346469320,1734985923738,-118.40437605,0.00015616,2]
[346469321,1734985923752,-381.59562395,0.00015616,2]
[346469322,1734985923762,-161.70049853,0.00015616,2]
[346469323,1734985923834,-1287.21950147,0.00015616,2]
[346469324,1734985923843,-150.0,0.00015626,2]
[346469325,1734985923854,-150.0,0.00015634,2]
[346469326,1734985923863,-150.0,0.0001564,2]
[346469327,1734985923873,-150.0,0.00015647,2]
[346469328,1734985923883,-1500.0,0.0001566,2]
[346469329,1734985923892,-180.58,0.00015661,2]
[346469330,1734985923902,-150.0,0.00015667,2]
[346469331,1734985923912,-150.0,0.00015671,2]
[346469332,1734985923922,-150.0,0.00015687,2]
[346469333,1734985923932,-150.0,0.00015687,2]
[346469334,1734985923945,-150.0,0.00015687,2]
[346469335,1734985923955,-150.0,0.00015703,2]
[346469336,1734985923967,-150.0,0.00015707,2]
[346469337,1734985923977,-150.0,0.00015727,2]
[346469338,1734985923987,-150.0,0.00015734,2]
[346469339,1734985923997,-150.0,0.0001574,2]
[346469340,1734985924007,-150.0,0.00015748,2]
[346469341,1734985924018,-500.0,0.00015753,2]
[346469342,1734985924027,-150.0,0.00015765,2]
[346469343,1734985924037,-150.0,0.00015768,2]
[346469344,1734985924047,-150.0,0.00015788,2]
[346469345,1734985924056,-2490.49522678,0.0001579,2]
[346469346,1734985924066,-165.19057036,0.0001579,2]
[346469347,1734985924075,-150.0,0.00015793,2]
[346469348,1734985924085,-150.0,0.00015797,2]
[346469349,1734985924094,-150.0,0.00015808,2]
[346469350,1734985924104,-1500.0,0.00015822,2]
[346469351,1734985924115,-500.0,0.00015822,2]
[346469352,1734985924124,-1500.0,0.00015822,2]
[346469353,1734985924134,-1500.0,0.00015822,2]
[346469354,1734985924144,-2438.98743098,0.00015824,2]
[346469355,1734985924154,-590.97650409,0.00015824,2]
[346469356,1734985924163,-260.38064722,0.00015824,2]
[346469357,1734985924173,-150.0,0.00015828,2]
[346469358,1734985924183,-150.0,0.00015828,2]
[346469359,1734985924193,-150.0,0.00015846,2]
[346469360,1734985924202,-150.0,0.00015848,2]
[346469361,1734985924214,-150.0,0.0001586,2]
[346469362,1734985924224,-150.0,0.00015869,2]
[346469363,1734985924233,-150.0,0.00015889,2]
[346469364,1734985924242,-666.0,0.00015889,2]
[346469365,1734985924252,-666.0,0.00015889,2]
[346469366,1734985924261,-151.0,0.0001589,2]
[346469367,1734985924271,-151.0,0.0001589,2]
[346469368,1734985924280,-151.0,0.0001589,2]
[346469369,1734985924291,-151.0,0.0001589,2]
[346469370,1734985924301,-151.0,0.0001589,2]
[346469371,1734985924310,-151.0,0.0001589,2]
[346469372,1734985924320,-1175.324182,0.0001589,2]
[346469373,1734985924330,-1175.324182,0.0001589,2]
[346469374,1734985924340,-191.488556,0.0001589,2]
[346469375,1734985924350,-191.488556,0.0001589,2]
[346469376,1734985924367,-151.0,0.0001589,2]